fUSD/lending_fUSD_20250804
["ID","MTS","AMOUNT","RATE_DAILY","PERIOD"]
[377175601,1754268641809,-1000.0,0.00028438,2]
[377175602,1754268641819,-841.41768095,0.0002902,2]
[377175603,1754268641828,-211.38371089,0.0002902,2]
[377175604,1754268641838,-500.0,0.00029096,2]
[377175605,1754268641847,-202.06,0.00029147,30]
[377175606,1754268641857,-1006.06,0.00029544,2]
[377175607,1754268641867,-600.0,0.00029644,2]
[377175608,1754268641876,-600.0,0.00029644,2]
[377175609,1754268641886,-600.0,0.00029644,2]
[377175610,1754268641896,-600.0,0.00029644,2]
[377175611,1754268641905,-150.0,0.00029699,2]
[377175612,1754268641915,-150.0,0.00029699,2]
[377175613,1754268641924,-150.0,0.00029699,2]
[377175614,1754268641934,-500.0,0.00029699,2]
[377175615,1754268641943,-1517.0,0.00029949,2]
[377175616,1754268641953,-150.0,0.00029973,2]
[377175617,1754268641963,-150.0,0.00029973,2]
[377175618,1754268641972,-565.32748438,0.00029973,2]
[377175619,1754268641981,-9747.554616,0.00029987,3]
[377175620,1754268641991,-200.0,0.00030137,5]
[377175621,1754268642000,-150.0,0.00030247,2]
[377175622,1754268642009,-200.0,0.00030247,2]
[377175623,1754268642019,-382.4,0.00030355,2]
[377175624,1754268642029,-457.13520606,0.00030459,2]
[377175625,1754268642038,-160.0,0.00030459,2]
[377175626,1754268642048,-150.0,0.00030521,2]
[377175627,1754268642057,-297.64,0.00030598,2]
[377175628,1754268642066,-9027.48537914,0.00030684,2]
[377175629,1754268642076,-150.0,0.00030795,2]
[377175630,1754268642086,-559.87144436,0.000309,120]
[377175631,1754268642095,-202.06,0.00030934,30]
[377175632,1754268642104,-250.0,0.00031069,2]
[377175633,1754268642113,-1006.06,0.00031275,2]
[377175634,1754268642123,-1000.0,0.00031281,2]
[377175635,1754268642132,-500.0,0.000321,5]
[377175636,1754268642142,-168.71613526,0.000321,5]
[377175637,1754268642151,-500.0,0.00032648,5]
[377175638,1754268642161,-202.06,0.00032721,30]
[377175639,1754268642170,-404.82619594,0.00032876,2]
[377175640,1754268642180,-391.90469204,0.00032876,2]
[377175641,1754268642189,-500.0,0.00032876,2]
[377175642,1754268642199,-500.0,0.00032876,2]
[377175643,1754268642208,-211.39140801,0.00032876,2]
[377175644,1754268642217,-500.0,0.00032877,7]
[377175645,1754268642226,-500.0,0.00032877,7]
[377175646,1754268642235,-500.0,0.00032877,7]
[377175647,1754268642245,-251.70275817,0.00032877,7]
[377175648,1754268642254,-265.32482353,0.00032877,7]
[377175649,1754268642263,-500.0,0.00032877,7]
[377175650,1754268642273,-500.0,0.00032889,2]
[377175651,1754268642282,-150.0000007,0.00032889,2]
[377175652,1754268642291,-500.0,0.00032889,2]
[377175653,1754268642300,-150.0,0.00032889,2]
[377175654,1754268642309,-150.0,0.00032889,2]
[377175655,1754268642319,-258.21273897,0.00032889,2]
[377175656,1754268642328,-500.0,0.00032889,2]
[377175657,1754268642339,-500.0,0.00032889,2]
[377175658,1754268642348,-150.0,0.00032889,2]
[377175659,1754268642359,-150.0,0.00032889,2]
[377175660,1754268642368,-150.0,0.00032889,2]
[377175661,1754268642378,-150.0,0.00032889,2]
[377175662,1754268642387,-150.0,0.00032889,2]
[377175663,1754268642396,-150.0,0.00032889,2]
[377175664,1754268642405,-464.48,0.000329,7]
[377175665,1754268642414,-2818.15,0.000329,14]
[377175666,1754268642423,-62638.68,0.000329,14]
[377175667,1754268642432,-195.04,0.00032944,14]
[377175668,1754268642441,-1006.06,0.00033005,2]
[377175669,1754268642451,-500.0,0.00033163,2]
[377175671,1754268642461,-500.0,0.00033163,2]
[377175672,1754268642470,-500.0,0.00033163,2]
[377175674,1754268642479,-500.0,0.00033163,2]
[377175675,1754268642488,-150.0,0.00033163,2]
[377175676,1754268642498,-150.0,0.00033163,2]
[377175677,1754268642507,-6066.0,0.000332,2]
[377175678,1754268642516,-500.0,0.00033437,2]
[377175680,1754268642526,-500.0,0.00033437,2]
[377175681,1754268642535,-500.0,0.00033437,2]
[377175682,1754268642545,-500.0,0.00033437,2]
[377175683,1754268642555,-150.0,0.00033437,2]
[377175684,1754268642565,-200.0,0.00033437,2]
[377175685,1754268642575,-329.11528663,0.00033494,16]
[377175687,1754268642584,-370.81,0.000336,14]
[377175689,1754268642593,-500.0,0.00033711,2]
[377175691,1754268642603,-500.0,0.00033711,2]
[377175692,1754268642613,-500.0,0.00033711,2]
[377175694,1754268642622,-500.0,0.00033711,2]
[377175695,1754268642632,-204.6,0.00033851,6]
[377175696,1754268642642,-358.24921407,0.00033985,2]
[377175697,1754268642651,-500.0,0.00033985,2]
[377175698,1754268642661,-500.0,0.00033985,2]
[377175699,1754268642671,-500.0,0.00033985,2]
[377175700,1754268642681,-78778.63281677,0.00034,2]
[377175701,1754268642694,-543.21,0.00034,2]
[377175702,1754268642705,-1000.0,0.00034125,2]
[377175703,1754268642715,-5510.0,0.000342,3]
[377175704,1754268642725,-151.31,0.00034247,2]
[377175705,1754268642735,-500.0,0.00034259,2]
[377175706,1754268642745,-500.0,0.00034259,2]
[377175707,1754268642754,-500.0,0.00034259,2]
[377175710,1754268642854,-202.06,0.00034507,30]
[377175711,1754268642864,-500.0,0.00034533,2]
[377175712,1754268642873,-500.0,0.00034533,2]
[377175713,1754268642884,-500.0,0.00034533,2]
[377175714,1754268642894,-1006.06,0.00034735,2]
[377175715,1754268642903,-500.0,0.00034807,2]
[377175716,1754268642912,-500.0,0.00034807,2]
[377175717,1754268642921,-500.0,0.00034807,2]
[377175718,1754268642930,-1004.70494574,0.00035,30]
[377175719,1754268642939,-500.0,0.00035081,2]
[377175720,1754268642948,-500.0,0.00035081,2]
[377175721,1754268642957,-339.62468178,0.00035081,2]
[377175722,1754268642968,-150.0,0.00035187,120]
[377175723,1754268642978,-2818.15,0.000352,14]
[377175724,1754268642987,-62638.68,0.000352,14]
[377175725,1754268642996,-5510.0,0.000352,5]
[377175726,1754268643006,-600.0,0.00035272,2]
[377175727,1754268643016,-600.0,0.00035272,2]
[377175728,1754268643025,-600.0,0.00035272,2]
[377175729,1754268643034,-600.0,0.00035272,2]
[377175730,1754268643043,-3934.4062443,0.00035294,7]
[377175731,1754268643054,-500.0,0.00035299,7]
[377175732,1754268643063,-210.29156939,0.00035355,2]
[377175733,1754268643073,-500.0,0.00035355,2]
[377175734,1754268643082,-700.0,0.00035371,7]
[377175735,1754268643091,-600.0,0.0003544,7]
[377175736,1754268643101,-8711.06,0.00035455,2]
[377175737,1754268643110,-13607.21,0.00035455,2]
[377175739,1754268643119,-499.99,0.00035455,2]
[377175742,1754268643128,-1503.89,0.00035455,30]
[377175744,1754268643137,-150.99,0.00035455,2]
[377175747,1754268643147,-299.99,0.00035455,30]
[377175750,1754268643156,-9999.99,0.00035455,2]
[377175753,1754268643165,-162534.49,0.00035455,10]
[377175756,1754268643174,-9999.99,0.00035455,2]
[377175759,1754268643183,-1650.0,0.00035455,20]
[377175761,1754268643192,-464.29,0.00035455,2]
[377175763,1754268643201,-150.99,0.00035455,30]
[377175765,1754268643210,-9999.99,0.00035455,2]
[377175767,1754268643219,-464.48,0.000356,7]
[377175769,1754268643228,-500.0,0.00035629,2]
[377175771,1754268643237,-191.05903551,0.00035749,7]
[377175773,1754268643246,-478.34367214,0.00035903,2]
[377175775,1754268643255,-382.4,0.0003591,2]
[377175777,1754268643265,-600.0,0.00035998,7]
[377175779,1754268643274,-4000.0,0.00036,4]
[377175781,1754268643283,-500.0,0.00036188,7]
[377175783,1754268643292,-202.06,0.00036294,60]
[377175784,1754268643303,-222.78786157,0.00036294,7]
[377175785,1754268643312,-538.1072499,0.00036294,7]
[377175786,1754268643321,-1500.0,0.00036294,120]
[377175787,1754268643331,-1047.10286728,0.00036294,7]
[377175788,1754268643346,-469.58207836,0.00036294,7]
[377175789,1754268643355,-41054.82208013,0.00036294,2]
[377175790,1754268643364,-17097.79365731,0.00036294,2]
[377175791,1754268643377,-21426.69398127,0.00036294,2]
[377175792,1754268643390,-5560.68430876,0.00036294,2]
[377175793,1754268643399,-27145.09745937,0.00036294,2]
[377175794,1754268643408,-15697.59097587,0.00036294,2]
[377175796,1754268643417,-1200.0,0.00036294,7]
[377175797,1754268643426,-14892.44805543,0.00036294,2]
[377175799,1754268643436,-23196.97660749,0.00036294,2]
[377175801,1754268643445,-500.0,0.00036294,7]
[377175803,1754268643454,-219.96540011,0.00036294,7]
[377175805,1754268643463,-15003.07070124,0.00036294,2]
[377175807,1754268643472,-308.22889578,0.00036294,7]
[377175809,1754268643481,-235.40444428,0.00036294,7]
[377175811,1754268643490,-7036.40561722,0.00036294,2]
[377175813,1754268643499,-20408.21209287,0.00036294,2]
[377175815,1754268643508,-1001.76939318,0.00036294,7]
[377175817,1754268643517,-10955.35716363,0.00036294,2]
[377175819,1754268643527,-502.3681463,0.00036294,2]
[377175821,1754268643536,-5729.20536693,0.00036294,2]
[377175823,1754268643546,-1023.02741487,0.00036294,7]
[377175825,1754268643558,-10275.65635648,0.00036294,2]
[377175827,1754268643567,-150.0,0.00036294,30]
[377175829,1754268643576,-12709.97901786,0.00036294,2]
[377175831,1754268643585,-1281.0,0.00036294,120]
[377175833,1754268643595,-503.37684399,0.00036294,30]
[377175835,1754268643604,-700.0,0.00036345,7]
[377175837,1754268643613,-1006.06,0.00036466,2]
[377175839,1754268643622,-1629.64,0.000366,7]
[377175841,1754268643631,-987.34585988,0.00036794,2]
[377175843,1754268643640,-994.42079327,0.00036843,7]
[377175845,1754268643649,-62638.68,0.000371,14]
[377175847,1754268643659,-2818.15,0.000374,14]
[377175849,1754268643669,-280.0,0.000374,30]
[377175851,1754268643680,-700.0,0.00037712,7]
[377175853,1754268643690,-329.11528663,0.00038,30]
[377175855,1754268643700,-500.0,0.00038115,7]
[377175857,1754268643710,-1006.06,0.00038196,2]
[377175858,1754268643720,-250.0,0.00038356,5]
[377175861,1754268643730,-6583.62182089,0.00038748,31]
[377175863,1754268643740,-151.0,0.00038748,14]
[377175865,1754268643749,-151.0,0.00038748,14]
[377175866,1754268643759,-276.991448,0.00038748,14]
[377175868,1754268643769,-222.89007,0.00038748,14]
[377175870,1754268643779,-276.991448,0.00038748,14]
[377175872,1754268643789,-222.89007,0.00038748,14]
[377175874,1754268643800,-151.0,0.00038748,14]
[377175877,1754268643816,-151.0,0.00038748,14]
[377175878,1754268643826,-464.48,0.000388,30]
[377175881,1754268643836,-600.0,0.00038806,7]
[377175882,1754268643845,-700.0,0.00038861,7]
[377175884,1754268643855,-152.0,0.00039,120]
[377175886,1754268643865,-587.6048768,0.00039,120]
[377175888,1754268643874,-600.0,0.00039229,7]
[377175890,1754268643884,-700.0,0.00039234,7]
[377175892,1754268643894,-204.6,0.00039433,15]
[377175894,1754268643903,-500.0,0.00039552,7]
[377175896,1754268643913,-1006.06,0.00039927,2]
[377175898,1754268643922,-152.0,0.0004,120]
[377175900,1754268643932,-1000.0,0.0004,120]
[377175902,1754268643942,-62638.68,0.0004,14]
[377175904,1754268643951,-229.0,0.00040226,5]
[377175906,1754268643961,-500.0,0.00040497,30]
[377175908,1754268643970,-2818.15,0.000408,14]
[377175910,1754268643980,-152.0,0.000409,120]
[377175912,1754268643990,-169.0,0.00041,90]
[377175914,1754268644003,-700.0,0.00041069,30]
[377175916,1754268644012,-314.51776381,0.000411,2]
[377175918,1754268644021,-391.0,0.0004114,30]
[377175920,1754268644030,-500.0,0.0004139,30]
[377175922,1754268644040,-1465.368,0.00041465,61]
[377175924,1754268644051,-600.0,0.0004155,14]
[377175926,1754268644061,-600.0,0.0004155,14]
[377175928,1754268644070,-466.15,0.0004155,14]
[377175930,1754268644079,-1006.06,0.00041657,120]
[377175932,1754268644089,-600.0,0.00041676,30]
[377175934,1754268644099,-500.0,0.00041703,30]
[377175936,1754268644108,-817.87,0.00041707,30]
[377175938,1754268644117,-571.23548305,0.00041809,30]
[377175940,1754268644129,-152.0,0.000419,120]
[377175942,1754268644139,-500.0,0.00041936,30]
[377175944,1754268644148,-464.48,0.00042,30]
[377175946,1754268644157,-700.0,0.00042118,30]
[377175948,1754268644167,-254.93,0.00042144,14]
[377175950,1754268644177,-600.0,0.000422,14]
[377175952,1754268644186,-600.0,0.000422,14]
[377175954,1754268644195,-466.15,0.000422,14]
[377175956,1754268644205,-500.0,0.00042763,30]
[377175958,1754268644214,-152.0,0.000428,120]
[377175960,1754268644224,-62638.68,0.000428,14]
[377175962,1754268644233,-254.93,0.00042823,14]
[377175964,1754268644242,-600.0,0.0004285,14]
[377175966,1754268644251,-600.0,0.0004285,14]
[377175968,1754268644260,-466.15,0.0004285,14]
[377175970,1754268644269,-273.50915207,0.00043012,30]
[377175972,1754268644279,-169.0,0.00043151,90]
[377175974,1754268644288,-2818.15,0.000433,14]
[377175976,1754268644297,-1006.06,0.00043387,120]
[377175978,1754268644309,-154.01,0.00043493,30]
[377175980,1754268644318,-536.97,0.00043493,30]
[377175981,1754268644327,-150.0,0.00043493,30]
[377175984,1754268644336,-536.97,0.00043493,30]
[377175986,1754268644347,-300.54,0.00043493,30]
[377175988,1754268644357,-1179.02,0.00043493,30]
[377175990,1754268644366,-359.0,0.00043493,30]
[377175992,1754268644376,-466.2,0.00043493,30]
[377175994,1754268644385,-818.21,0.00043493,30]
[377175996,1754268644397,-536.97,0.00043493,30]
[377175998,1754268644406,-172.84,0.00043493,30]
[377176000,1754268644416,-165.35,0.00043493,30]
[377176002,1754268644425,-150.0,0.00043493,30]
[377176004,1754268644435,-1179.02,0.00043493,30]
[377176006,1754268644444,-818.21,0.00043493,30]
[377176008,1754268644453,-359.0,0.00043493,30]
[377176010,1754268644463,-150.0,0.00043493,30]
[377176012,1754268644472,-172.84,0.00043493,30]
[377176014,1754268644481,-165.35,0.00043493,30]
[377176016,1754268644491,-1179.02,0.00043493,30]
[377176018,1754268644500,-536.97,0.00043493,30]
[377176020,1754268644509,-818.21,0.00043493,30]
[377176022,1754268644518,-359.0,0.00043493,30]
[377176024,1754268644527,-536.97,0.00043493,30]
[377176026,1754268644537,-150.0,0.00043493,30]
[377176028,1754268644546,-784.53,0.00043493,30]
[377176030,1754268644558,-165.35,0.00043493,30]
[377176031,1754268644567,-172.84,0.00043493,30]
[377176033,1754268644577,-1179.02,0.00043493,30]
[377176035,1754268644587,-359.0,0.00043493,30]
[377176037,1754268644597,-150.0,0.00043493,30]
[377176039,1754268644606,-165.35,0.00043493,30]
[377176041,1754268644616,-172.84,0.00043493,30]
[377176043,1754268644627,-1179.02,0.00043493,30]
[377176045,1754268644636,-172.84,0.00043493,30]
[377176047,1754268644648,-165.35,0.00043493,30]
[377176049,1754268644661,-1179.02,0.00043493,30]
[377176052,1754268644672,-172.84,0.00043493,30]
[377176054,1754268644683,-165.35,0.00043493,30]
[377176056,1754268644694,-172.84,0.00043493,30]
[377176058,1754268644704,-1179.02,0.00043493,30]
[377176059,1754268644715,-165.35,0.00043493,30]
[377176062,1754268644728,-172.84,0.00043493,30]
[377176064,1754268644738,-165.35,0.00043493,30]
[377176066,1754268644749,-165.35,0.00043493,30]
[377176068,1754268644759,-165.35,0.00043493,30]
[377176070,1754268644770,-165.35,0.00043493,30]
[377176072,1754268644780,-165.35,0.00043493,30]
[377176074,1754268644792,-165.35,0.00043493,30]
[377176076,1754268644807,-573.18,0.00043493,30]
[377176077,1754268644819,-817.33,0.00043493,30]
[377176080,1754268644832,-165.29,0.00043493,30]
[377176082,1754268644843,-151.0,0.000435,120]
[377176083,1754268644856,-254.93,0.00043502,14]
[377176085,1754268644866,-500.0,0.0004353,30]
[377176088,1754268644878,-515.0,0.00043617,10]
[377176090,1754268644892,-152.0,0.000438,120]
[377176092,1754268644906,-4000.0,0.00044,8]
[377176094,1754268644918,-500.0,0.00044055,2]
[377176096,1754268644928,-515.0,0.00044181,10]
[377176098,1754268644940,-600.0,0.00044273,30]
[377176100,1754268644950,-195.0,0.000443,2]
[377176102,1754268644961,-500.0,0.00044478,30]
[377176104,1754268644972,-212.69,0.00044519,30]
[377176106,1754268644982,-151.31,0.00044521,2]
[377176108,1754268644995,-500.0,0.00044543,2]
[377176110,1754268645005,-500.0,0.00044543,2]
[377176112,1754268645016,-500.0,0.00044543,2]
[377176114,1754268645026,-500.0,0.00044543,2]
[377176116,1754268645036,-500.0,0.00044543,2]
[377176118,1754268645046,-500.0,0.00044543,2]
[377176120,1754268645056,-218.08126222,0.00044543,2]
[377176122,1754268645066,-464.48,0.000446,30]
[377176124,1754268645076,-700.0,0.00044697,30]
[377176126,1754268645086,-152.0,0.000447,120]
[377176128,1754268645096,-515.0,0.00044746,10]
[377176130,1754268645106,-1000.0,0.00045,120]
[377176132,1754268645115,-514.84936309,0.00045,120]
[377176134,1754268645124,-204.6,0.00045015,120]
[377176136,1754268645133,-62638.68,0.000451,14]
[377176138,1754268645143,-1006.06,0.00045118,120]
[377176140,1754268645153,-548.0,0.00045254,60]
[377176142,1754268645162,-515.0,0.00045311,10]
[377176143,1754268645172,-191.0,0.0004544,2]
[377176145,1754268645181,-600.0,0.00045461,30]
[377176147,1754268645190,-150.0,0.0004555,120]
[377176149,1754268645200,-2818.15,0.000456,14]
[377176151,1754268645211,-151.0,0.000456,14]
[377176153,1754268645221,-151.0,0.000456,14]
[377176155,1754268645231,-151.0,0.000456,14]
[377176157,1754268645240,-520.555924,0.000456,14]
[377176159,1754268645249,-520.555924,0.000456,14]
[377176161,1754268645259,-151.0,0.000456,14]
[377176163,1754268645268,-152.0,0.000457,120]
[377176165,1754268645277,-515.0,0.00045876,10]
[377176167,1754268645286,-500.0,0.00045892,30]
[377176169,1754268645296,-1000.0,0.00046,120]
[377176171,1754268645314,-300.0,0.00046,120]
[377176173,1754268645323,-500.0,0.00046,120]
[377176175,1754268645333,-1000.0,0.00046,120]
[377176177,1754268645342,-500.0,0.00046,120]
[377176179,1754268645352,-500.0,0.00046,120]
[377176181,1754268645364,-1358.03,0.000462,14]
[377176184,1754268645373,-515.0,0.00046441,12]
[377176186,1754268645382,-187.0,0.0004657,2]
[377176188,1754268645391,-300.0,0.00046594,120]
[377176190,1754268645401,-152.0,0.000466,120]
[377176192,1754268645410,-700.0,0.00046645,30]
[377176194,1754268645419,-464.48,0.000467,30]
[377176196,1754268645428,-1006.06,0.00046848,120]
[377176198,1754268645438,-151.0,0.00046848,14]
[377176200,1754268645447,-151.0,0.00046848,14]
[377176202,1754268645456,-151.0,0.00046848,14]
[377176204,1754268645466,-174.594282,0.00046848,14]
[377176206,1754268645475,-174.594282,0.00046848,14]
[377176208,1754268645485,-151.0,0.00046848,14]
[377176210,1754268645494,-151.0,0.00046848,14]
[377176212,1754268645503,-62638.68,0.000469,14]
[377176214,1754268645513,-151.0,0.000469,14]
[377176216,1754268645522,-1000.0,0.00047,120]
[377176218,1754268645531,-1000.0,0.00047,120]
[377176220,1754268645540,-1000.0,0.00047,120]
[377176222,1754268645552,-1000.0,0.00047,120]
[377176224,1754268645562,-1000.0,0.00047,120]
[377176226,1754268645571,-1000.0,0.00047,120]
[377176228,1754268645580,-1000.0,0.00047,120]
[377176230,1754268645590,-1000.0,0.00047,120]
[377176233,1754268645599,-152.60155497,0.00047,120]
[377176235,1754268645608,-1000.0,0.00047,120]
[377176237,1754268645617,-515.0,0.00047006,14]
[377176239,1754268645627,-600.0,0.00047174,30]
[377176241,1754268645636,-500.0,0.00047402,120]
[377176243,1754268645645,-188.17,0.0004757,2]
[377176245,1754268645655,-515.0,0.00047571,16]
[377176247,1754268645664,-152.0,0.000476,120]
[377176249,1754268645675,-2818.15,0.000477,14]
[377176251,1754268645687,-151.0,0.000477,14]
[377176253,1754268645697,-242.865424,0.000477,14]
[377176255,1754268645707,-151.0,0.000477,14]
[377176257,1754268645716,-151.0,0.000477,14]
[377176259,1754268645726,-151.0,0.000477,14]
[377176261,1754268645735,-151.0,0.000477,14]
[377176263,1754268645745,-151.0,0.000477,14]
[377176265,1754268645754,-183.0,0.0004771,2]
[377176267,1754268645764,-700.0,0.00047876,30]
[377176269,1754268645774,-1000.0,0.00048,120]
[377176271,1754268645783,-1000.0,0.00048,120]
[377176273,1754268645793,-500.0,0.0004803,30]
[377176275,1754268645805,-600.0,0.00048107,30]
[377176277,1754268645815,-515.0,0.00048136,18]
[377176279,1754268645825,-2000.0,0.000485,120]
[377176281,1754268645834,-152.0,0.000485,120]
[377176283,1754268645843,-600.0,0.00048548,30]
[377176285,1754268645852,-600.0,0.00048549,30]
[377176287,1754268645861,-500.0,0.00048573,30]
[377176288,1754268645870,-1006.06,0.00048578,120]
[377176289,1754268645880,-515.0,0.00048701,20]
[377176290,1754268645890,-1000.0,0.00048798,14]
[377176291,1754268645900,-500.0,0.00048804,120]
[377176292,1754268645909,-180.0,0.0004885,2]
[377176293,1754268645919,-464.48,0.000489,30]
[377176294,1754268645929,-1179.02,0.00048904,30]
[377176295,1754268645938,-536.97,0.00048904,30]
[377176296,1754268645949,-168.08,0.00048904,30]
[377176297,1754268645958,-298.19,0.00048904,30]
[377176298,1754268645968,-150.0,0.00048942,7]
[377176300,1754268645977,-150.0,0.00048955,7]
[377176302,1754268645987,-150.0,0.00048969,7]
[377176304,1754268645996,-212.69,0.00048971,120]
[377176306,1754268646006,-1000.0,0.00049,120]
[377176308,1754268646015,-5000.00818231,0.00049,120]
[377176310,1754268646024,-1000.0,0.00049,120]
[377176312,1754268646035,-62638.68,0.00049,14]
[377176314,1754268646044,-1000.0,0.00049059,14]
[377176316,1754268646056,-162.32781974,0.00049101,30]
[377176318,1754268646065,-700.0,0.00049135,30]
[377176320,1754268646074,-150.0,0.00049144,7]
[377176322,1754268646083,-1000.0,0.0004917,14]
[377176324,1754268646092,-1000.0,0.00049202,14]
[377176326,1754268646102,-150.0,0.00049223,7]
[377176329,1754268646111,-515.0,0.00049266,22]
[377176331,1754268646121,-400.0,0.00049315,120]
[377176333,1754268646130,-502.95401503,0.00049315,120]
[377176335,1754268646138,-310.83147327,0.00049315,120]
[377176337,1754268646147,-400.0,0.00049315,120]
[377176339,1754268646156,-462.17620602,0.00049315,120]
[377176341,1754268646166,-151.0,0.00049315,14]
[377176343,1754268646175,-151.0,0.00049315,14]
[377176345,1754268646184,-151.0,0.00049315,14]
[377176347,1754268646194,-151.0,0.00049315,14]
[377176349,1754268646203,-400.0,0.00049315,120]
[377176351,1754268646213,-151.0,0.00049315,14]
[377176353,1754268646224,-282.737341,0.00049315,14]
[377176355,1754268646233,-151.0,0.00049315,14]
[377176357,1754268646243,-282.737341,0.00049315,14]
[377176359,1754268646252,-400.0,0.00049315,120]
[377176361,1754268646261,-400.0,0.00049315,120]
[377176363,1754268646270,-1244.74,0.00049315,120]
[377176365,1754268646280,-826.02,0.00049315,120]
[377176367,1754268646289,-453.71,0.00049315,120]
[377176370,1754268646299,-151.0,0.00049315,14]
[377176372,1754268646308,-661.4,0.00049315,120]
[377176374,1754268646317,-664.09,0.00049315,120]
[377176376,1754268646326,-400.0,0.00049315,120]
[377176378,1754268646336,-400.0,0.00049315,120]
[377176380,1754268646345,-400.0,0.00049315,120]
[377176382,1754268646355,-400.0,0.00049315,120]
[377176384,1754268646364,-400.0,0.00049315,120]
[377176386,1754268646374,-855.87,0.00049315,120]
[377176388,1754268646383,-400.0,0.00049315,120]
[377176390,1754268646392,-400.0,0.00049315,120]
[377176392,1754268646401,-467.5,0.00049315,120]
[377176394,1754268646411,-598.51,0.00049315,30]
[377176396,1754268646420,-1194.47,0.00049315,120]
[377176398,1754268646429,-400.0,0.00049315,120]
[377176400,1754268646438,-400.0,0.00049315,120]
[377176401,1754268646447,-400.0,0.00049315,120]
[377176403,1754268646456,-494.0347006,0.00049315,120]
[377176406,1754268646466,-510.02,0.00049315,120]
[377176407,1754268646475,-718.03,0.00049315,120]
[377176409,1754268646485,-418.52,0.00049315,120]
[377176411,1754268646494,-400.0,0.00049315,120]
[377176413,1754268646503,-400.0,0.00049315,120]
[377176415,1754268646512,-489.19,0.00049315,120]
[377176417,1754268646521,-1095.36,0.00049315,120]
[377176419,1754268646530,-400.0,0.00049315,120]
[377176421,1754268646540,-400.0,0.00049315,120]
[377176423,1754268646550,-1000.0,0.00049315,120]
[377176425,1754268646559,-990.86,0.00049315,120]
[377176427,1754268646569,-400.0,0.00049315,120]
[377176429,1754268646578,-400.0,0.00049315,120]
[377176431,1754268646587,-400.0,0.00049315,120]
[377176433,1754268646596,-850.97,0.00049315,120]
[377176435,1754268646606,-865.45,0.00049315,120]
[377176437,1754268646615,-400.0,0.00049315,120]
[377176439,1754268646624,-1434.0,0.00049315,120]
[377176441,1754268646633,-607.27,0.00049315,120]
[377176443,1754268646644,-219.551219,0.00049315,14]
[377176446,1754268646653,-400.0,0.00049315,120]
[377176448,1754268646664,-400.0,0.00049315,120]
[377176449,1754268646673,-675.28,0.00049315,120]
[377176451,1754268646684,-400.0,0.00049315,120]
[377176453,1754268646694,-400.0,0.00049315,7]
[377176455,1754268646703,-219.551219,0.00049315,14]
[377176457,1754268646713,-400.0,0.00049315,120]
[377176460,1754268646723,-402.87135158,0.00049315,120]
[377176461,1754268646732,-400.0,0.00049315,120]
[377176464,1754268646742,-400.0,0.00049315,120]
[377176466,1754268646753,-400.0,0.00049315,120]